bitfinex/quotes_SOLUSD_20250101
["timestamp","ask_amount","ask_price","bid_price","bid_amount"]
[1735729675839,5.0,190.79,190.77,30.29558286]
[1735729677871,5.0,190.8,190.79,20.0]
[1735729678057,10.0,190.8,190.79,20.0]
[1735729678375,5.0,190.8,190.79,20.0]
[1735729678578,10.0,190.8,190.79,20.0]
[1735729678955,10.0,190.8,190.74,34.07246686]
[1735729679270,10.0,190.77,190.76,20.0]
[1735729679671,5.0,190.77,190.76,20.0]
[1735729679966,5.0,190.77,190.75,10.29558286]
[1735729681378,10.0,190.77,190.74,10.29558286]
[1735729681565,10.0,190.75,190.74,10.29558286]
[1735729681745,10.0,190.73,190.71,10.29558286]
[1735729681947,10.0,190.71,190.7,1.77609616]
[1735729682146,10.0,190.69,190.67,10.29558286]
[1735729682770,5.0,190.68,190.67,10.29558286]
[1735729682969,5.0,190.68,190.66,10.29558286]
[1735729683343,10.0,190.69,190.68,20.0]
[1735729683669,5.0,190.74,190.71,20.0]
[1735729683880,5.0,190.74,190.73,10.29558286]
[1735729684171,10.0,190.75,190.73,10.29558286]
[1735729684860,5.0,190.74,190.73,10.29558286]
[1735729685067,10.0,190.74,190.73,10.29558286]
[1735729685948,5.0,190.74,190.73,10.29558286]
[1735729686582,10.0,190.77,190.76,20.0]
[1735729686765,5.0,190.77,190.76,30.29558286]
[1735729686959,10.0,190.77,190.75,10.29558286]
[1735729687948,5.0,190.77,190.75,10.29558286]
[1735729688880,5.0,190.78,190.77,20.0]
[1735729689050,5.0,190.78,190.77,30.29558286]
[1735729689979,10.0,190.78,190.77,30.29558286]
[1735729690194,10.0,190.78,190.76,10.29558286]
[1735729690477,5.0,190.77,190.76,10.29558286]
[1735729690979,5.0,190.76,190.75,20.0]
[1735729691183,10.0,190.73,190.72,10.29558286]
[1735729692255,10.0,190.73,190.72,1.78646859]
[1735729692877,10.0,190.73,190.71,20.0]
[1735729693176,10.0,190.72,190.71,20.0]
[1735729694378,5.0,190.68,190.67,20.0]
[1735729694761,5.0,190.68,190.67,1.79111138]
[1735729695260,10.0,190.68,190.67,1.79111138]
[1735729695756,10.0,190.68,190.66,21.79111138]
[1735729696384,10.0,190.68,190.66,20.0]
[1735729696583,5.0,190.67,190.66,20.0]
[1735729696883,10.0,190.67,190.66,20.0]
[1735729697378,5.0,190.66,190.65,20.0]
[1735729697581,10.0,190.66,190.65,20.0]
[1735729698097,10.0,190.66,190.65,1.7949554]
[1735729701293,0.98350107,190.71,190.65,1.7949554]
[1735729701294,10.0,190.67,190.66,20.0]
[1735729701784,10.0,190.67,190.65,32.09053826]
[1735729701970,5.0,190.66,190.65,30.29558286]
[1735729702474,5.0,190.68,190.67,20.0]
[1735729702665,5.0,190.71,190.68,23.776884]
[1735729702867,5.0,190.68,190.67,12.09395828]
[1735729703278,10.0,190.68,190.67,12.09395828]
[1735729703587,10.0,190.7,190.69,20.0]
[1735729703884,10.0,190.71,190.7,20.0]
[1735729704085,5.0,190.71,190.7,20.0]
[1735729704376,10.0,190.71,190.7,1.79837542]
[1735729705774,10.0,190.73,190.71,20.0]
[1735729705974,5.0,190.72,190.71,20.0]
[1735729706483,10.0,190.73,190.71,20.0]
[1735729706793,10.0,190.73,190.71,30.29558286]
[1735729707889,5.0,190.73,190.71,30.29558286]
[1735729708086,10.0,190.76,190.74,20.0]
[1735729708263,10.0,190.75,190.74,20.0]
[1735729708458,5.0,190.75,190.74,20.0]
[1735729708979,10.0,190.76,190.74,10.29558286]
[1735729709494,5.0,190.76,190.75,10.29558286]
[1735729709867,10.0,190.8,190.78,20.0]
[1735729710068,5.0,190.8,190.79,20.0]
[1735729710586,10.0,190.81,190.79,30.29558286]
[1735729710889,5.0,190.8,190.79,30.29558286]
[1735729711065,5.0,190.81,190.79,30.29558286]
[1735729711268,5.0,190.81,190.8,10.29558286]
[1735729711480,10.0,190.81,190.8,10.29558286]
[1735729711681,5.0,190.81,190.8,10.29558286]
[1735729712279,10.0,190.82,190.8,34.01807117]
[1735729712486,5.0,190.81,190.8,10.24118717]
[1735729712684,5.0,190.8,190.79,12.03976716]
[1735729712995,10.0,190.81,190.79,17.80304451]
[1735729713371,10.0,190.82,190.79,17.80304451]
[1735729713569,5.0,190.82,190.8,23.776884]
[1735729713874,5.0,190.83,190.81,16.00446452]
[1735729714077,5.0,190.82,190.81,39.78134852]
[1735729714278,5.0,190.82,190.81,23.776884]
[1735729714691,5.0,190.82,190.81,39.78134852]
[1735729714894,5.0,190.83,190.81,39.78134852]
[1735729714895,10.0,190.83,190.81,39.78134852]
[1735729715496,5.0,190.83,190.81,39.78134852]
[1735729715792,5.0,190.84,190.82,16.00446452]
[1735729716373,10.0,190.85,190.84,20.0]
[1735729717189,5.0,190.85,190.84,20.0]
[1735729717390,10.0,190.85,190.84,20.0]
[1735729717867,5.0,190.85,190.84,20.0]
[1735729718064,10.0,190.85,190.84,20.0]
[1735729718592,2.59681334,190.9,190.87,21.6666]
[1735729718593,0.98261334,190.9,190.87,21.6666]
[1735729718791,0.98261334,190.9,190.85,1.5431]
[1735729718792,3.3334,190.98,190.9,23.776884]
[1735729718968,3.3334,190.98,190.97,16.00446452]
[1735729719167,3.3334,191.0,190.99,20.0]
[1735729719478,3.3334,191.0,190.99,36.00446452]
[1735729719781,8.3334,191.0,190.99,36.00446452]
[1735729719982,3.3334,191.0,190.99,36.00446452]
[1735729720995,8.3334,191.0,190.99,20.0]
[1735729721202,8.3334,191.0,190.98,16.00446452]
[1735729721203,3.3334,190.99,190.98,16.00446452]
[1735729722197,8.3334,190.99,190.98,16.00446452]
[1735729723173,3.3334,190.99,190.98,16.00446452]
[1735729723370,8.3334,190.99,190.98,16.00446452]
[1735729723574,8.3334,190.99,190.97,16.00446452]
[1735729723790,5.0,190.98,190.97,36.00446452]
[1735729724399,3.3334,190.99,190.97,36.00446452]
[1735729724589,5.0,190.98,190.97,36.00446452]
[1735729724787,3.3334,190.99,190.97,36.00446452]
[1735729725103,5.0,190.98,190.97,36.00446452]
[1735729725596,8.3334,190.98,190.97,36.00446452]
[1735729726002,5.0,190.98,190.97,36.00446452]
[1735729726502,8.3334,190.98,190.97,36.00446452]
[1735729726905,5.0,190.98,190.97,36.00446452]
[1735729727084,8.3334,190.98,190.97,36.00446452]
[1735729727279,3.3334,191.01,190.98,23.776884]
[1735729727603,8.3334,191.0,190.98,16.00446452]
[1735729728198,3.3334,191.0,190.99,16.00446452]
[1735729729600,8.3334,191.0,190.99,16.00446452]
[1735729730108,3.3334,191.0,190.99,16.00446452]
[1735729731209,8.3334,191.02,191.01,20.0]
[1735729737726,8.3334,191.01,191.0,20.0]
[1735729737885,3.3334,190.97,190.96,10.22092934]
[1735729738798,5.0,190.98,190.96,10.22092934]
[1735729739007,5.0,190.98,190.97,10.22092934]
[1735729741485,5.0,191.0,190.99,20.0]
[1735729742499,5.0,190.94,190.89,19.4759]
[1735729742813,5.0,190.94,190.93,10.22092934]
[1735729744916,0.98193946,191.0,190.89,13.0959]
[1735729744917,5.0,190.93,190.89,13.0959]
[1735729745122,5.0,190.91,190.89,13.0959]
[1735729745329,5.0,190.91,190.9,33.99781334]
[1735729746216,5.0,190.91,190.9,10.22092934]
[1735729746517,5.0,190.9,190.89,10.22092934]
[1735729748503,5.0,190.89,190.88,10.22092934]
[1735729749499,5.0,190.89,190.88,30.57394389]
[1735729750220,5.0,190.89,190.88,20.0]
[1735729750429,5.0,190.89,190.88,30.57394389]
[1735729751123,5.0,190.89,190.88,54.35082789]
[1735729754613,5.0,190.89,190.88,56.13570083]
[1735729756719,5.0,190.91,190.89,23.776884]
[1735729756924,5.0,190.91,190.9,34.35082789]
[1735729757305,5.0,190.92,190.91,23.776884]
[1735729757621,5.0,190.92,190.91,34.35082789]
[1735729757818,5.0,190.92,190.91,1.78487294]
[1735729758707,5.0,190.92,190.9,10.57394389]
[1735729759431,5.0,190.91,190.9,10.57394389]
[1735729760728,5.0,190.91,190.9,12.36417787]
[1735729764630,5.0,190.91,190.9,36.14106187]
[1735729766448,5.0,190.91,190.9,34.35082789]
[1735729767234,5.0,190.91,190.9,10.57394389]
[1735729770129,5.0,190.91,190.88,30.57394389]
[1735729770318,5.0,190.91,190.9,20.0]
[1735729771936,5.0,190.88,190.87,10.57394389]
[1735729773342,5.0,190.87,190.86,32.36749622]
[1735729773829,5.0,190.89,190.86,56.14438022]
[1735729774134,5.0,190.88,190.87,23.776884]
[1735729774312,5.0,190.9,190.89,23.776884]
[1735729774833,5.0,190.9,190.87,23.776884]
[1735729775132,5.0,190.89,190.88,43.776884]
[1735729775431,6.0465,190.99,190.89,23.776884]
[1735729775432,5.0,190.91,190.89,23.776884]
[1735729775604,5.0,190.91,190.9,10.57394389]
[1735729775807,5.0,190.92,190.9,10.57394389]
[1735729776021,5.0,190.91,190.9,20.0]
[1735729777809,5.0,190.91,190.9,30.57394389]
[1735729780214,5.0,190.91,190.9,32.37030178]
[1735729781244,5.0,190.91,190.9,21.79635789]
[1735729781452,5.0,190.91,190.9,1.79635789]
[1735729782114,5.0,190.9,190.89,30.57394389]
[1735729782760,5.0,190.9,190.89,32.37369825]
[1735729789869,5.0,190.9,190.89,1.79975436]
[1735729808763,137.8276,190.98,190.89,36.15058225]
[1735729808764,5.0,190.91,190.89,36.15058225]
[1735729809266,5.0,190.92,190.9,34.35082789]
[1735729809463,5.0,190.92,190.91,10.57394389]
[1735729810178,5.0,190.92,190.91,34.35082789]
[1735729810548,5.0,190.92,190.91,36.15058225]
[1735729815064,5.0,190.93,190.91,1.79975436]
[1735729815369,5.0,190.92,190.91,12.37369825]
[1735729817367,5.0,190.93,190.91,12.37369825]
[1735729817551,5.0,190.93,190.92,54.35082789]
[1735729817954,5.0,190.93,190.92,56.15058225]
[1735729820574,5.0,190.94,190.93,23.776884]
[1735729821262,5.0,190.94,190.93,25.57663836]
[1735729822067,5.0,190.94,190.93,36.15058225]
[1735729825455,5.0,190.94,190.93,1.79975436]
[1735729826151,5.98220457,190.94,190.93,1.79975436]
[1735729826356,5.98220457,190.94,190.88,10.57394389]
[1735729826989,5.98220457,190.94,190.89,1.79824179]
[1735729827285,5.0,190.9,190.89,1.79824179]
[1735729832489,5.0,190.89,190.88,10.57394389]
[1735729834405,5.0,190.89,190.88,12.37269918]
[1735729834982,5.0,190.89,190.88,10.57394389]
[1735729836086,5.0,190.89,190.88,12.37253309]
[1735729837285,5.0,190.89,190.88,10.57394389]
[1735729837692,5.0,190.89,190.88,12.37254479]
[1735729841492,5.0,190.89,190.88,21.7986009]
[1735729841693,5.0,190.89,190.88,32.37254479]
[1735729844898,5.0,190.89,190.88,1.7986009]
[1735729846884,5.0,190.89,190.88,12.37254479]
[1735729848402,5.0,190.89,190.88,1.7986009]
[1735729851693,5.0,190.89,190.88,20.0]
[1735729852493,5.0,190.89,190.88,30.57394389]
[1735729853380,5.0,190.89,190.88,32.37042858]
[1735729858512,5.0,190.89,190.88,30.57394389]
[1735729859513,5.0,190.89,190.88,20.0]
[1735729863214,5.0,190.89,190.88,30.57394389]
[1735729863812,5.0,190.89,190.88,20.0]
[1735729868415,5.0,190.89,190.88,21.79728007]
[1735729870819,5.0,190.89,190.88,1.79728007]
[1735729877919,5.0,190.82,190.81,10.57394389]
[1735729878101,5.0,190.82,190.8,10.57394389]
[1735729881125,5.0,190.82,190.81,1.79883393]
[1735729883827,5.0,190.82,190.75,10.57394389]
[1735729884028,5.0,190.76,190.73,23.776884]
[1735729884808,5.0,190.75,190.74,25.57390193]
[1735729885237,5.0,190.75,190.74,36.14784582]
[1735729885621,5.0,190.81,190.78,23.776884]
[1735729885821,5.0,190.83,190.8,10.57394389]
[1735729886020,5.0,190.83,190.82,10.57394389]
[1735729888520,5.0,190.83,190.81,10.57394389]
[1735729889335,5.0,190.82,190.81,10.57394389]
[1735729891219,5.0,190.78,190.76,6.6582]
[1735729891420,5.0,190.78,190.77,30.57394389]
[1735729891913,5.0,190.78,190.77,10.57394389]
[1735729892108,5.0,190.78,190.77,36.14577501]
[1735729892529,5.0,190.78,190.77,1.79494712]
[1735729893734,5.0,190.74,190.73,10.57394389]
[1735729907327,5.0,190.74,190.7,23.776884]
[1735729907524,5.0,190.74,190.73,10.57394389]
[1735729908844,5.0,190.72,190.69,23.776884]
[1735729909035,5.0,190.72,190.71,34.35082789]
[1735729910250,5.0,190.73,190.72,23.776884]
[1735729910550,5.0,190.73,190.72,10.57394389]
[1735729915948,5.0,190.73,190.69,23.776884]
[1735729916151,5.0,190.69,190.67,6.1204]
[1735729916355,5.0,190.68,190.65,18.94911766]
[1735729916548,5.0,190.68,190.67,10.57394389]
[1735729916740,5.0,190.68,190.67,34.35082789]
[1735729917142,5.0,190.68,190.67,36.14156157]
[1735729917933,5.0,190.69,190.68,23.776884]
[1735729918550,5.0,190.69,190.68,25.56761768]
[1735729919365,5.0,190.69,190.68,1.79073368]
[1735729919564,5.0,190.69,190.68,12.36467757]
[1735729920368,5.0,190.69,190.68,32.36467757]
[1735729922973,5.0,190.7,190.68,56.14156157]
[1735729923276,5.0,190.72,190.7,23.776884]
[1735729923481,5.0,190.72,190.71,10.57394389]
[1735729924571,5.0,190.73,190.71,10.57394389]
[1735729924780,5.0,190.72,190.71,1.79073368]
[1735729925572,5.0,190.72,190.71,12.36467757]
[1735729926475,5.0,190.73,190.71,12.36467757]
[1735729926777,5.0,190.72,190.71,1.79073368]
[1735729927145,5.0,190.72,190.7,26.3583906]
[1735729927650,5.0,190.71,190.7,26.3583906]
[1735729927896,5.0,190.73,190.71,4.37643424]
[1735729928044,5.0,190.73,190.72,10.57394389]
[1735729928385,5.0,190.73,190.72,12.36887153]
[1735729928674,5.0,190.73,190.72,14.95037813]
[1735729929479,5.0,190.73,190.72,12.36887153]
[1735729930661,1.5499,190.79,190.72,12.36887153]
[1735729930662,5.0,190.75,190.72,12.36887153]
[1735729930858,5.0,190.73,190.72,24.37643424]
[1735729931071,5.0,190.73,190.72,48.15331824]
[1735729931489,5.0,190.75,190.73,23.776884]
[1735729932062,5.0,190.74,190.73,23.776884]
[1735729932473,5.0,190.74,190.73,21.79492764]
[1735729932989,5.0,190.75,190.73,21.79492764]
[1735729933174,5.0,190.75,190.74,23.776884]
[1735729933863,5.0,190.75,190.74,26.36119522]
[1735729934063,5.0,190.75,190.74,28.15612286]
[1735729934784,5.0,190.75,190.74,38.73006675]
[1735729940795,5.0,190.76,190.74,38.73006675]
[1735729940995,5.0,190.76,190.75,10.57394389]
[1735729941700,5.0,190.76,190.75,14.95318275]
[1735729949302,5.0,190.76,190.75,38.73006675]
[1735729949488,5.0,190.77,190.76,23.776884]
[1735729949686,5.0,190.77,190.76,34.74208777]
[1735729949889,5.0,190.77,190.76,36.53701541]
[1735729950086,5.0,190.77,190.76,39.12132663]
[1735729950713,5.0,190.77,190.76,38.73006675]
[1735729953901,5.0,190.83,190.82,43.776884]
[1735729954096,5.0,190.86,190.82,10.57394389]
[1735729955088,5.0,190.83,190.8,0.39081835]
[1735729955421,5.0,190.81,190.79,33.1027]
[1735729955610,5.0,190.81,190.8,23.776884]
[1735729956222,5.0,190.81,190.8,25.57247785]
[1735729956375,5.0,190.84,190.8,28.15634694]
[1735729956705,5.0,190.85,190.83,10.57394389]
[1735729956902,5.0,190.85,190.84,10.57394389]
[1735729957496,5.0,190.85,190.84,12.36953774]
[1735729959103,5.0,190.85,190.84,10.57394389]
[1735729959907,5.0,190.86,190.84,10.57394389]
[1735729960090,5.0,190.86,190.85,10.57394389]
[1735729960279,5.0,190.85,190.83,20.0]
[1735729960601,5.0,190.85,190.84,10.57394389]
[1735729961101,5.0,190.85,190.84,34.35082789]
[1735729962697,5.0,190.86,190.84,34.35082789]
[1735729962877,5.0,190.86,190.85,10.57394389]
[1735729964103,5.0,190.85,190.84,34.35082789]
[1735729965289,1.5959,190.89,190.73,80.7]
[1735729965290,5.0,190.83,190.82,20.0]
[1735729965496,5.0,190.83,190.82,30.57394389]
[1735729965895,5.0,190.8,190.77,23.776884]
[1735729966102,5.0,190.8,190.79,34.35082789]
[1735729966293,5.0,190.8,190.79,20.0]
[1735729966611,5.0,190.8,190.79,10.57394389]
[1735729967178,5.0,190.8,190.79,32.36469934]
[1735729969806,5.0,190.81,190.8,23.776884]
[1735729970004,5.0,190.81,190.8,10.57394389]
[1735729970886,5.0,190.81,190.8,12.36469934]
[1735729982721,5.0,190.81,190.8,1.79075545]
[1735729982912,5.0,190.81,190.8,12.36469934]
[1735729983109,5.0,190.81,190.8,10.57394389]
[1735729983318,5.0,190.81,190.8,12.36694084]
[1735729984917,5.0,190.81,190.8,1.79299695]
[1735729985124,5.0,190.81,190.8,12.36694084]
[1735729985303,5.0,190.81,190.8,1.79299695]
[1735729985513,5.0,190.81,190.8,12.36694084]
[1735729991626,5.0,190.81,190.8,1.79299695]
[1735729992208,5.98285728,190.81,190.8,1.79299695]
[1735729992409,5.0,190.79,190.78,10.57394389]
[1735729992730,5.0,190.79,190.77,10.57394389]
[1735729993110,0.98285728,190.81,190.77,10.57394389]
[1735729993111,5.0,190.78,190.77,10.57394389]
[1735729993423,5.0,190.77,190.76,10.57394389]
[1735729993623,5.0,190.77,190.76,12.37217175]
[1735730003358,5.0,190.78,190.76,12.37217175]
[1735730003643,5.0,190.79,190.77,10.57394389]
[1735730003814,5.0,190.79,190.78,10.57394389]
[1735730004438,5.0,190.8,190.78,12.37217175]
[1735730004644,5.0,190.8,190.79,10.57394389]
[1735730005448,5.0,190.8,190.79,12.37217175]
[1735730005738,5.0,190.81,190.79,12.37217175]
[1735730005938,5.0,190.82,190.8,76.64660345]
[1735730006144,5.0,190.83,190.81,34.35082789]
[1735730006339,5.0,190.83,190.82,10.57394389]
[1735730007017,5.0,190.83,190.82,12.37217175]
[1735730011347,5.0,190.83,190.82,36.14905575]
[1735730011548,5.0,190.84,190.82,12.37217175]
[1735730011855,5.0,190.84,190.83,34.35082789]
[1735730012650,5.0,190.84,190.83,36.14905575]
[1735730012953,5.0,190.84,190.83,25.57511186]
[1735730013145,5.0,190.84,190.83,36.14905575]
[1735730015648,5.0,190.84,190.83,1.79822786]
[1735730015830,5.0,190.84,190.83,12.37217175]
[1735730016151,5.0,190.85,190.83,12.37217175]
[1735730016444,5.0,190.85,190.84,10.57394389]
[1735730017654,5.0,190.85,190.84,12.37217175]
[1735730018134,5.0,190.85,190.84,10.57394389]
[1735730019851,2.58108972,190.89,190.84,10.57394389]
[1735730019852,5.0,190.88,190.84,34.35082789]
[1735730020054,5.0,190.91,190.87,34.35082789]
[1735730020232,5.0,190.91,190.9,10.57394389]
[1735730025553,5.0,190.92,190.9,10.57394389]
[1735730025731,5.0,190.92,190.91,10.57394389]
[1735730037263,5.0,190.89,190.87,1.78934472]
[1735730037456,5.0,190.89,190.88,10.57394389]
[1735730037651,5.0,190.89,190.88,34.35082789]
[1735730039166,5.0,190.89,190.88,10.57394389]
[1735730041081,5.0,190.87,190.86,23.776884]
[1735730041370,5.0,190.85,190.84,23.776884]
[1735730041547,5.0,190.85,190.83,23.776884]
[1735730042363,5.0,190.86,190.85,43.776884]
[1735730042678,5.0,190.85,190.84,12.36256343]
[1735730042886,5.0,190.85,190.84,1.78861954]
[1735730043258,5.0,190.85,190.83,10.57394389]
[1735730043485,5.0,190.85,190.84,10.57394389]
[1735730044169,5.0,190.85,190.82,1.78861954]
[1735730044474,5.0,190.85,190.84,10.57394389]
[1735730047479,5.0,190.85,190.83,1.78861954]
[1735730047784,5.0,190.84,190.83,10.57394389]
[1735730048883,5.0,190.84,190.83,12.36897099]
[1735730051787,5.0,190.84,190.83,10.57394389]
[1735730056185,5.0,190.84,190.83,12.37012343]
[1735730056596,5.0,190.84,190.83,10.57394389]
[1735730056905,5.0,190.84,190.83,12.37052577]
[1735730058706,5.0,190.85,190.83,36.14740977]
[1735730058878,5.0,190.84,190.83,25.57346588]
[1735730059297,5.0,190.84,190.83,1.79658188]
[1735730060709,5.0,190.84,190.83,12.37052577]
[1735730063801,5.0,190.84,190.83,10.57394389]
[1735730066780,5.0,190.84,190.82,30.57394389]
[1735730067192,5.0,190.83,190.82,30.57394389]
[1735730068123,5.0,190.83,190.82,10.57394389]
[1735730068291,5.0,190.76,190.75,20.56921766]
[1735730068480,5.0,190.76,190.75,23.67984389]
[1735730068682,5.0,190.76,190.75,49.25400606]
[1735730070331,5.0,190.76,190.75,38.68006217]
[1735730070610,5.0,190.76,190.75,36.14810606]
[1735730070987,5.0,190.77,190.75,36.14810606]
[1735730071193,5.0,190.76,190.75,25.57416217]
[1735730072697,5.0,190.76,190.75,36.14810606]
[1735730079530,5.0,190.78,190.76,23.776884]
[1735730079726,5.0,190.78,190.77,34.35082789]
[1735730080025,5.0,190.78,190.77,36.14810606]
[1735730080226,5.0,190.8,190.78,23.776884]
[1735730080425,5.0,190.83,190.81,20.0]
[1735730080596,5.0,190.82,190.81,20.0]
[1735730080799,5.0,190.83,190.81,30.57394389]
[1735730081017,5.0,190.83,190.82,10.57394389]
[1735730081195,5.0,190.86,190.85,20.0]
[1735730081393,5.0,190.86,190.85,30.57394389]
[1735730081593,5.0,190.86,190.85,10.57394389]
[1735730082614,5.0,190.85,190.84,10.57394389]
[1735730085296,5.0,190.85,190.83,10.57394389]
[1735730085615,5.0,190.84,190.83,10.57394389]
[1735730086218,5.0,190.84,190.83,12.37041033]
[1735730087697,5.0,190.84,190.83,1.79646644]
[1735730090824,5.0,190.84,190.81,10.57394389]
[1735730091516,5.0,190.84,190.82,12.3713715]
[1735730091892,5.0,190.84,190.83,10.57394389]
[1735730093708,5.0,190.84,190.82,10.57394389]
[1735730093913,5.0,190.83,190.82,10.57394389]
[1735730094115,5.0,190.83,190.81,10.57394389]
[1735730094594,5.0,190.82,190.81,10.57394389]
[1735730095608,5.0,190.82,190.81,1.79789198]
[1735730097697,5.0,190.81,190.8,10.57394389]
[1735730098210,5.0,190.81,190.8,12.37256494]
[1735730101826,5.0,190.82,190.81,23.776884]
[1735730102123,5.0,190.82,190.81,34.35082789]
[1735730102529,5.0,190.83,190.81,36.14944894]
[1735730102706,5.0,190.83,190.82,10.57394389]
[1735730103214,5.0,190.83,190.82,12.37256494]
[1735730104936,1.5214,190.9,190.82,36.14944894]
[1735730104937,5.0,190.86,190.82,36.14944894]
[1735730105110,5.0,190.86,190.85,10.57394389]
[1735730106314,5.0,190.86,190.85,12.37256494]
[1735730108406,5.0,190.87,190.86,23.776884]
[1735730108635,5.0,190.89,190.86,34.35082789]
[1735730108819,5.0,190.89,190.88,10.57394389]
[1735730109336,5.0,190.9,190.88,10.57394389]
[1735730109526,5.0,190.89,190.85,24.16720884]
[1735730109731,5.0,190.9,190.88,10.57394389]
[1735730109930,5.0,190.9,190.89,10.57394389]
[1735730110131,5.0,190.89,190.88,10.57394389]
[1735730110322,5.0,190.88,190.87,10.57394389]
[1735730111132,5.0,190.88,190.87,12.36893025]
[1735730113325,5.0,190.92,190.9,20.0]
[1735730113621,5.0,190.92,190.91,10.57394389]
[1735730113857,2.52191224,190.98,190.89,10.57394389]
[1735730113858,5.0,190.91,190.89,10.57394389]
[1735730114144,5.0,190.89,190.88,10.57394389]
[1735730114317,5.0,190.89,190.87,20.0]
[1735730114524,5.0,190.89,190.88,1.80665901]
[1735730115139,5.0,190.89,190.88,12.3806029]
[1735730116222,5.0,190.89,190.88,10.57394389]
[1735730118246,5.0,190.89,190.88,12.38018839]
[1735730119124,5.0,190.89,190.88,36.15707239]
[1735730120147,5.0,190.91,190.89,23.776884]
[1735730120350,5.0,190.92,190.9,34.35082789]
[1735730120538,5.0,190.92,190.91,34.35082789]
[1735730120929,5.0,190.92,190.91,36.15707239]
[1735730122665,5.0,190.94,190.93,20.0]
[1735730122967,5.0,190.94,190.93,30.57394389]
[1735730124646,5.0,190.92,190.91,10.57394389]
[1735730124851,5.0,190.91,190.9,10.57394389]
[1735730126051,5.0,190.91,190.9,30.57394389]
[1735730126548,5.0,190.91,190.89,20.0]
[1735730126737,5.0,190.89,190.88,12.37712754]
[1735730127052,5.0,190.89,190.88,10.57394389]
[1735730136765,5.0,190.89,190.88,12.37208391]
[1735730137464,5.0,190.89,190.88,36.14896791]
[1735730137661,136.3,190.96,190.89,23.776884]
[1735730137662,5.0,190.9,190.89,23.776884]
[1735730137867,5.0,190.92,190.91,43.776884]
[1735730138070,5.0,190.92,190.91,54.35082789]
[1735730138396,5.0,190.92,190.91,56.14896791]
[1735730138870,5.0,190.92,190.91,54.35082789]
[1735730140069,5.0,190.92,190.91,56.14902653]
[1735730140846,5.0,190.92,190.91,54.35082789]
[1735730141259,5.0,190.94,190.91,54.35082789]
[1735730141460,5.0,190.92,190.91,45.57538807]
[1735730141780,5.0,190.92,190.91,54.35082789]
[1735730142481,5.0,190.92,190.91,56.14958878]
[1735730143165,10.0,191.03,190.91,56.14958878]
[1735730143166,5.0,191.12,190.99,0.8958]
[1735730143468,5.0,191.11,191.09,10.57394389]
[1735730143852,5.0,191.11,191.1,10.57394389]
[1735730145147,0.59209229,191.17,191.13,20.0]
[1735730145353,141.3,191.23,191.11,0.78483482]
[1735730145657,141.3,191.23,191.1,48.57067556]
[1735730145658,136.3,191.21,191.16,10.57394389]
[1735730145858,0.59209229,191.2,191.16,10.57394389]
[1735730146056,0.59209229,191.2,191.14,20.0]
[1735730146274,0.59209229,191.2,191.17,10.57394389]
[1735730147173,0.59209229,191.2,191.14,20.0]
[1735730147354,0.59209229,191.2,191.17,10.57394389]
[1735730147549,0.59209229,191.2,191.14,20.0]
[1735730147853,0.59209229,191.2,191.17,10.57394389]
[1735730148756,0.59209229,191.2,191.18,10.57394389]
[1735730148957,0.59209229,191.22,191.15,23.776884]